bitfinex/quotes_BTCUSD_20220226
["timestamp","ask_amount","ask_price","bid_price","bid_amount"]
[1645912915645,0.25487008,39390.0,39381.0,0.00041085]
[1645912915847,0.31839008,39390.0,39381.0,0.00041085]
[1645912916045,0.063523,39388.0,39381.0,0.00041085]
[1645912916445,0.063523,39388.0,39372.0,0.16537]
[1645912916646,0.063523,39388.0,39383.0,0.00041084]
[1645912917252,0.31839008,39390.0,39383.0,0.00041084]
[1645912917253,0.06352,39390.0,39383.0,0.00041084]
[1645912917452,0.1716933,39391.0,39384.0,0.378139]
[1645912917651,0.376931,39394.0,39384.0,0.378139]
[1645912917652,0.2987243,39394.0,39384.0,0.378139]
[1645912917850,0.2352073,39394.0,39384.0,0.378139]
[1645912918047,0.063514,39394.0,39384.0,0.378139]
[1645912918245,0.063514,39394.0,39381.0,0.21311482]
[1645912918246,0.19212023,39393.0,39381.0,0.21311482]
[1645912918484,0.19212023,39393.0,39382.0,0.478139]
[1645912918690,0.19212023,39393.0,39383.0,0.378139]
[1645912918888,0.063514,39394.0,39382.0,0.1]
[1645912920084,0.063514,39394.0,39381.0,0.21311482]
[1645912920293,0.063514,39394.0,39387.0,0.20473659]
[1645912920488,0.3665933,39396.0,39388.0,0.378139]
[1645912920686,0.2352023,39397.0,39388.0,0.378139]
[1645912920890,0.01014,39400.0,39389.0,0.1]
[1645912920891,0.1716933,39400.0,39389.0,0.1]
[1645912921090,0.1716933,39400.0,39390.0,0.378139]
[1645912921290,0.1716933,39400.0,39395.0,0.2005134]
[1645912921490,0.1716933,39405.0,39397.0,0.378139]
[1645912921889,0.01054744,39406.0,39397.0,0.378139]
[1645912922137,0.07404144,39406.0,39399.0,0.378139]
[1645912922343,0.073644,39406.0,39395.0,0.2005134]
[1645912922542,0.073644,39406.0,39400.0,0.00040536]
[1645912922739,0.01054751,39406.0,39401.0,0.378139]
[1645912922942,0.00039751,39406.0,39401.0,0.378139]
[1645912923334,0.00139751,39406.0,39401.0,0.378139]
[1645912923534,0.001,39406.0,39401.0,0.378139]
[1645912923734,0.001,39406.0,39402.0,0.00040535]
[1645912923933,0.00139753,39406.0,39402.0,0.00040535]
[1645912924433,0.00039753,39406.0,39402.0,0.00040535]
[1645912924732,0.17266526,39407.0,39403.0,0.378139]
[1645912924937,0.17266526,39407.0,39402.0,0.00040534]
[1645912925133,0.00039754,39406.0,39402.0,0.00040534]
[1645912925333,0.00239754,39406.0,39402.0,0.00040534]
[1645912925535,0.06589154,39406.0,39402.0,0.00040534]
[1645912925992,0.002,39406.0,39399.0,0.18895842]
[1645912926191,0.00239754,39406.0,39402.0,0.00040534]
[1645912926691,0.00039754,39406.0,39402.0,0.00040534]
[1645912927290,0.002,39406.0,39399.0,0.378139]
[1645912927491,0.00239754,39406.0,39402.0,0.00040534]
[1645912928392,0.002,39406.0,39403.0,0.373139]
[1645912928591,0.17163741,39409.0,39402.0,0.00040534]
[1645912928790,0.00039754,39406.0,39403.0,0.377995]
[1645912929394,0.00039754,39406.0,39405.0,0.377995]
[1645912929643,0.002,39409.0,39405.0,0.377995]
[1645912929942,0.00039754,39406.0,39405.0,0.377995]
[1645912930547,0.00039754,39406.0,39405.0,0.7374838]
[1645912930745,0.17163741,39418.0,39405.0,0.8374838]
[1645912930943,0.37003741,39420.0,39406.0,0.02537]
[1645912931148,0.26004,39421.0,39415.0,0.1]
[1645912931349,0.17163741,39423.0,39419.0,0.1]
[1645912931546,0.21955395,39426.0,39420.0,0.7374838]
[1645912931744,0.2499,39432.0,39420.0,0.7374838]
[1645912932342,0.00029249,39425.0,39420.0,0.7374838]
[1645912932542,0.00029249,39425.0,39420.0,0.7628538]
[1645912932749,0.00029249,39425.0,39423.0,0.21978754]
[1645912933045,0.00029249,39425.0,39424.0,0.428395]
[1645912933243,0.015,39433.0,39424.0,0.7374838]
[1645912934105,0.015,39433.0,39425.0,0.02537]
[1645912934307,0.015,39433.0,39430.0,0.1]
[1645912934506,0.015,39433.0,39432.0,0.1]
[1645912934804,0.015,39433.0,39432.0,1.06136738]
[1645912935406,0.015,39433.0,39432.0,0.75227858]
[1645912935602,0.015,39433.0,39432.0,1.06136738]
[1645912935804,0.005,39433.0,39432.0,1.06136738]
[1645912936007,0.00039728,39434.0,39433.0,0.41799499]
[1645912936207,0.00039728,39434.0,39433.0,1.53285379]
[1645912936402,0.00039728,39434.0,39433.0,2.29362379]
[1645912936802,0.04,39440.0,39433.0,2.29362379]
[1645912937003,0.04,39440.0,39438.0,0.3248327]
[1645912937250,0.04,39440.0,39438.0,1.54706402]
[1645912938348,0.04037917,39440.0,39438.0,1.54706402]
[1645912938750,0.04037917,39440.0,39438.0,0.6804]
[1645912938954,0.04037917,39440.0,39438.0,0.0504]
[1645912939148,0.04037917,39440.0,39438.0,0.428395]
[1645912939349,0.04,39440.0,39438.0,0.428395]
[1645912939547,0.04011947,39440.0,39438.0,0.428395]
[1645912939947,0.02511947,39440.0,39438.0,0.428395]
[1645912940347,0.025,39440.0,39438.0,0.428395]
[1645912942591,0.025,39440.0,39438.0,0.377995]
[1645912946244,0.025,39440.0,39433.0,0.95216999]
[1645912946444,0.19983543,39436.0,39434.0,0.3775452]
[1645912946852,0.19983543,39436.0,39433.0,0.85116999]
[1645912946853,0.30769684,39435.0,39433.0,0.80076999]
[1645912947247,0.377792,39434.0,39433.0,0.80076999]
[1645912948496,0.68548884,39434.0,39433.0,0.80076999]
[1645912948692,0.90831893,39434.0,39433.0,0.80076999]
[1645912948899,0.96844893,39434.0,39433.0,0.80076999]
[1645912949098,2.04274893,39434.0,39433.0,0.80076999]
[1645912949292,2.09314893,39434.0,39433.0,0.74766999]
[1645912950492,2.09314893,39434.0,39433.0,0.69806999]
[1645912950690,2.22006593,39434.0,39433.0,0.69806999]
[1645912950890,1.44566593,39434.0,39433.0,0.69806999]
[1645912951891,2.22006593,39434.0,39433.0,0.69806999]
[1645912952145,1.44566593,39434.0,39433.0,0.69806999]
[1645912952539,1.43566593,39434.0,39433.0,0.69806999]
[1645912953540,2.21006593,39434.0,39433.0,0.69806999]
[1645912953744,1.43566593,39434.0,39433.0,0.69806999]
[1645912953942,1.14937584,39434.0,39433.0,0.69806999]
[1645912956500,0.841679,39434.0,39433.0,0.69806999]
[1645912956696,0.2499,39434.0,39433.0,0.69806999]
[1645912956899,0.00039728,39435.0,39433.0,0.69806999]
[1645912957294,0.19983543,39436.0,39433.0,0.69806999]
[1645912957594,0.20023271,39436.0,39433.0,0.69806999]
[1645912958395,0.19983543,39436.0,39433.0,0.69806999]
[1645912958800,0.20023271,39436.0,39433.0,0.69806999]
[1645912959642,0.063445,39439.0,39433.0,0.69806999]
[1645912960043,0.00039728,39436.0,39433.0,0.69806999]
[1645912960843,0.025,39440.0,39433.0,0.69806999]
[1645912961243,0.00039728,39436.0,39433.0,0.69806999]
[1645912962044,0.025,39440.0,39433.0,0.69806999]
[1645912962247,0.025,39440.0,39429.0,0.19246978]
[1645912962248,0.00039728,39436.0,39429.0,0.19246978]
[1645912962442,0.00039728,39436.0,39430.0,0.377792]
[1645912963247,0.025,39440.0,39430.0,0.377792]
[1645912963494,0.00039728,39435.0,39429.0,0.19246978]
[1645912963691,0.00039728,39435.0,39430.0,0.377792]
[1645912964494,0.32913698,39440.0,39430.0,0.377792]
[1645912964693,0.00039728,39434.0,39427.0,0.20684527]
[1645912964993,0.00039728,39434.0,39428.0,0.377792]
[1645912965595,0.00039728,39434.0,39428.0,0.55620766]
[1645912965893,0.00039728,39433.0,39427.0,0.20684527]
[1645912966091,0.00039728,39433.0,39428.0,0.377792]
[1645912966796,0.126893,39438.0,39428.0,0.377792]
[1645912966992,0.126893,39438.0,39429.0,0.16181547]
[1645912967248,0.126893,39438.0,39422.0,0.0504]
[1645912967249,0.00039728,39432.0,39428.0,0.377792]
[1645912967850,0.00039728,39432.0,39423.0,0.002]
[1645912968049,0.30413698,39437.0,39424.0,0.377792]
[1645912968247,0.18723422,39433.0,39423.0,0.002]
[1645912968450,0.00039728,39432.0,39424.0,0.377792]
[1645912968650,0.00039728,39432.0,39425.0,0.377792]
[1645912968850,0.00039728,39432.0,39421.0,0.377792]
[1645912969248,0.18723422,39433.0,39423.0,0.17185207]
[1645912969452,0.18723422,39433.0,39421.0,0.377792]
[1645912969652,0.23400603,39426.0,39421.0,0.377792]
[1645912970907,0.00039728,39425.0,39421.0,0.377792]
[1645912971316,0.30453426,39425.0,39416.0,0.002]
[1645912971614,0.00039728,39425.0,39418.0,0.377792]
[1645912971814,0.7744,39420.0,39416.0,0.002]
[1645912972027,0.438322,39419.0,39416.0,0.002]
[1645912972212,0.07361684,39419.0,39416.0,0.00180001]
[1645912972412,0.32351684,39419.0,39416.0,0.00180001]
[1645912972608,0.32351684,39419.0,39412.0,0.30413698]
[1645912972609,0.32283773,39419.0,39412.0,0.30413698]
[1645912972809,0.52479586,39419.0,39407.0,0.02531]
[1645912973113,0.52479586,39419.0,39408.0,0.17376603]
[1645912973308,0.52679586,39419.0,39408.0,0.17376603]
[1645912974308,0.26203,39419.0,39408.0,0.17376603]
[1645912974511,0.26003,39419.0,39408.0,0.17376603]
[1645912974941,0.26003,39419.0,39414.0,0.16274454]
[1645912975141,0.2499,39419.0,39408.0,0.02537]
[1645912976241,0.2499,39419.0,39412.0,0.18512076]
[1645912977242,0.2509,39419.0,39412.0,0.18512076]
[1645912978591,0.2499,39419.0,39412.0,0.18512076]
[1645912980795,0.00039723,39422.0,39413.0,0.62417221]
[1645912980995,0.00039723,39422.0,39413.0,0.377792]
[1645912981294,0.00039723,39422.0,39420.0,0.377792]
[1645912981491,0.1989,39427.0,39413.0,0.62387591]
[1645912981692,0.00039725,39422.0,39413.0,0.62387591]
[1645912981893,0.00039725,39422.0,39413.0,0.377792]
[1645912982152,0.00039725,39422.0,39413.0,0.403162]
[1645912982354,0.00039725,39422.0,39419.0,0.6022932]
[1645912982547,0.22529529,39427.0,39419.0,0.6022932]
[1645912982750,0.22529529,39427.0,39419.0,0.2245012]
[1645912982946,0.00039725,39422.0,39420.0,0.377792]
[1645912983746,0.22529529,39427.0,39420.0,0.377792]
[1645912984247,0.00039728,39423.0,39420.0,0.377792]
[1645912985048,0.22529529,39427.0,39420.0,0.377792]
[1645912985249,0.00039728,39423.0,39420.0,0.377792]
[1645912986093,0.22529529,39427.0,39420.0,0.377792]
[1645912986496,0.00039728,39423.0,39420.0,0.377792]
[1645912987298,0.001,39423.0,39420.0,0.377792]
[1645912987796,0.00139728,39423.0,39420.0,0.377792]
[1645912988499,0.5091595,39431.0,39424.0,0.377792]
[1645912988695,0.49570208,39432.0,39424.0,0.377792]
[1645912990751,0.3199595,39433.0,39428.0,0.21411932]
[1645912990952,0.3199595,39433.0,39424.0,0.377792]
[1645912991252,0.00011918,39430.0,39424.0,0.377792]
[1645912991658,0.00011918,39430.0,39426.0,0.377792]
[1645912991852,0.00011918,39430.0,39429.0,0.377792]
[1645912992252,0.3199595,39436.0,39429.0,0.377792]
[1645912992453,0.3199595,39437.0,39432.0,0.1964588]
[1645912992655,0.3199595,39437.0,39433.0,0.35814613]
[1645912993495,0.5529594,39439.0,39433.0,0.35814613]
[1645912993693,0.00039628,39437.0,39433.0,0.35814613]
[1645912994691,0.3199595,39438.0,39433.0,0.35814613]
[1645912994992,0.00039628,39437.0,39433.0,0.35814613]
[1645912995794,0.3149595,39438.0,39433.0,0.35814613]
[1645912995992,0.20348563,39440.0,39433.0,0.35814613]
[1645912996195,0.00039628,39437.0,39433.0,0.377783]
[1645912997148,0.025,39440.0,39433.0,0.377783]
[1645912997352,0.00039628,39437.0,39433.0,0.377783]
[1645912998150,0.025,39440.0,39433.0,0.377783]
[1645912998347,0.00039628,39437.0,39433.0,0.377783]
[1645912999347,0.025,39440.0,39433.0,0.377783]
[1645912999749,0.00039628,39437.0,39433.0,0.377783]
[1645913000652,0.00039628,39437.0,39422.0,0.33336322]
[1645913000653,0.063445,39439.0,39427.0,0.377783]
[1645913000906,0.00039628,39437.0,39422.0,0.05]
[1645913001106,0.23262703,39431.0,39424.0,0.377783]
[1645913001507,0.30281606,39430.0,39424.0,0.377783]
[1645913001713,0.30281606,39430.0,39422.0,0.001]
[1645913001714,0.377783,39429.0,39422.0,0.001]
[1645913001907,0.01013,39429.0,39422.0,0.001]
[1645913002108,0.01052628,39429.0,39422.0,0.001]
[1645913002810,0.063467,39428.0,39419.0,0.18142874]
[1645913003010,0.063467,39428.0,39417.0,0.22609064]
[1645913003011,0.126929,39428.0,39417.0,0.22609064]
[1645913003209,0.12732528,39428.0,39417.0,0.22609064]
[1645913003408,0.12732528,39428.0,39418.0,0.001]
[1645913004210,0.126929,39428.0,39418.0,0.001]
[1645913004646,0.00039628,39427.0,39417.0,0.22609064]
[1645913005350,0.00039628,39427.0,39418.0,0.001]
[1645913005544,0.126929,39428.0,39418.0,0.001]
[1645913005745,0.00011889,39427.0,39418.0,0.001]
[1645913006544,0.00011889,39427.0,39417.0,0.27276735]
[1645913006743,0.00011089,39427.0,39419.0,0.18023477]
[1645913006948,0.00011089,39427.0,39417.0,0.27276735]
[1645913007150,0.00011089,39427.0,39423.0,0.19460037]
[1645913007748,0.01013,39431.0,39424.0,0.377783]
[1645913007953,0.063456,39432.0,39424.0,0.16955693]
[1645913008148,0.00036963,39427.0,39424.0,0.16955693]
[1645913008397,0.00036963,39427.0,39425.0,0.377783]
[1645913008998,0.063456,39432.0,39425.0,0.377783]
[1645913009198,0.063456,39432.0,39424.0,0.16955693]
[1645913009400,0.00036963,39428.0,39424.0,0.16955693]
[1645913010201,0.063456,39432.0,39424.0,0.16955693]
[1645913010606,0.00036963,39428.0,39424.0,0.16955693]
[1645913011401,1.42606806,39434.0,39425.0,0.377783]
[1645913011603,1.123252,39434.0,39424.0,0.16955693]
[1645913011801,0.00033081,39428.0,39424.0,0.16955693]
[1645913012248,0.00033081,39428.0,39425.0,0.377783]
[1645913012447,0.00033081,39428.0,39424.0,0.16955693]
[1645913012648,1.42606806,39434.0,39424.0,0.16955693]
[1645913012845,0.00033081,39428.0,39424.0,0.16955693]
[1645913013251,0.00033081,39428.0,39425.0,0.377783]
[1645913013446,0.00033081,39428.0,39424.0,0.16955693]
[1645913013647,0.00033081,39428.0,39425.0,0.377783]
[1645913013847,1.42606806,39434.0,39424.0,0.16955693]
[1645913014050,0.00033081,39428.0,39424.0,0.16955693]
[1645913014252,0.00033081,39428.0,39425.0,0.377783]
[1645913014454,0.00033081,39428.0,39426.0,0.0504]
[1645913014651,0.00033081,39428.0,39427.0,0.60059906]
[1645913014851,0.00033081,39428.0,39427.0,0.65099906]
[1645913015051,0.025,39440.0,39427.0,0.65099906]
[1645913015251,0.025,39440.0,39429.0,0.18905529]
[1645913015451,0.025,39440.0,39430.0,0.68059906]
[1645913016294,0.025,39440.0,39431.0,0.20002888]
[1645913016496,0.025,39440.0,39432.0,0.67990576]
[1645913016695,0.00033728,39437.0,39432.0,0.67990576]
[1645913016895,0.00033728,39437.0,39432.0,0.377802]
[1645913017496,0.025,39440.0,39432.0,0.377802]
[1645913017695,0.00033728,39436.0,39432.0,0.377802]
[1645913018698,0.025,39440.0,39432.0,0.377802]
[1645913018898,0.00033617,39436.0,39432.0,0.377802]
[1645913019951,0.32013523,39438.0,39432.0,0.377802]
[1645913020156,0.00033617,39436.0,39432.0,0.377802]
[1645913020852,0.00033617,39436.0,39432.0,0.55772952]
[1645913021058,0.025,39440.0,39432.0,0.55772952]
[1645913021059,0.32013523,39439.0,39432.0,0.55772952]
[1645913021454,0.025,39440.0,39432.0,0.55772952]
[1645913021455,0.32013523,39438.0,39432.0,0.55772952]
[1645913021853,0.32013523,39438.0,39432.0,0.377802]
[1645913022557,0.00033686,39437.0,39433.0,0.30210376]
[1645913022760,0.00033686,39437.0,39434.0,0.377802]
[1645913022956,0.00033686,39437.0,39435.0,0.30210376]
[1645913023156,0.00033686,39437.0,39436.0,0.377802]
[1645913023606,0.32013523,39439.0,39436.0,0.377802]
[1645913023804,0.00033686,39438.0,39436.0,0.377802]
[1645913024603,0.32013523,39439.0,39436.0,0.377802]
[1645913025004,0.32013523,39438.0,39436.0,0.377802]
[1645913025404,0.32047209,39439.0,39436.0,0.377802]
[1645913025804,0.32013523,39439.0,39436.0,0.377802]
[1645913026207,0.32047001,39439.0,39436.0,0.377802]
[1645913026805,0.32013523,39438.0,39436.0,0.377802]
[1645913027643,0.32047001,39439.0,39436.0,0.377802]
[1645913028242,0.32013523,39439.0,39436.0,0.377802]
[1645913028641,0.32047001,39439.0,39436.0,0.377802]
[1645913028844,0.32047001,39439.0,39436.0,0.34002181]
[1645913029445,0.32013523,39439.0,39436.0,0.34002181]
[1645913029843,0.32047031,39439.0,39436.0,0.34002181]
[1645913030244,0.32013523,39438.0,39436.0,0.34002181]
[1645913032298,0.32013523,39437.0,39436.0,0.34002181]
[1645913032696,0.32013523,39437.0,39428.0,0.30097386]
[1645913032896,0.32013523,39437.0,39429.0,0.377786]
[1645913033098,0.32013523,39437.0,39430.0,0.30097386]
[1645913033297,0.32013523,39436.0,39431.0,0.5370395]
[1645913033499,0.00033504,39434.0,39431.0,0.377786]
[1645913034398,0.2241562,39435.0,39431.0,0.377786]
[1645913034648,0.00033504,39434.0,39431.0,0.377786]
[1645913035247,0.21949124,39435.0,39431.0,0.377786]
[1645913035448,0.53962647,39435.0,39431.0,0.377786]
[1645913035848,0.53962647,39435.0,39431.0,0.56443596]
[1645913036050,0.53962647,39435.0,39431.0,0.377786]
[1645913036849,0.21949124,39435.0,39431.0,0.377786]
[1645913037050,0.53962647,39435.0,39431.0,0.377786]
[1645913039490,0.32013523,39435.0,39432.0,0.30097386]
[1645913039691,0.32013523,39435.0,39433.0,0.377786]
[1645913040493,0.32046944,39436.0,39433.0,0.37767993]
[1645913040992,0.32013523,39435.0,39433.0,0.37767993]
[1645913041191,0.00033421,39436.0,39433.0,0.37767993]
[1645913041192,0.32046944,39436.0,39433.0,0.37767993]
[1645913041594,0.32013523,39436.0,39433.0,0.37767993]
[1645913041796,0.32046944,39436.0,39433.0,0.37767993]
[1645913042657,0.32013523,39435.0,39433.0,0.37767993]
[1645913047300,0.32046956,39436.0,39433.0,0.37767993]
[1645913047503,0.32013523,39436.0,39433.0,0.37767993]
[1645913047902,0.00037345,39436.0,39433.0,0.37767993]
[1645913048500,0.32050868,39436.0,39433.0,0.37767993]
[1645913048702,0.32013523,39436.0,39433.0,0.37767993]
[1645913048899,0.32050868,39436.0,39433.0,0.33991194]
[1645913049103,0.00037345,39436.0,39433.0,0.33991194]
[1645913049748,0.32050868,39436.0,39433.0,0.33991194]
[1645913049946,0.32013523,39436.0,39433.0,0.33991194]
[1645913050347,0.32050868,39436.0,39433.0,0.33991194]
[1645913051245,0.32013523,39436.0,39433.0,0.33991194]
[1645913051446,0.32046389,39436.0,39433.0,0.33991194]
[1645913051645,0.32013523,39435.0,39433.0,0.33991194]
[1645913053406,0.32013523,39434.0,39424.0,0.3]
[1645913053605,0.32029162,39432.0,39425.0,0.377801]
[1645913053805,0.51058358,39432.0,39425.0,0.377801]
[1645913054107,0.32029162,39431.0,39425.0,0.377801]
[1645913054305,0.32029162,39430.0,39425.0,0.377801]
[1645913055506,0.32029162,39431.0,39425.0,0.59228214]
[1645913055909,0.32029162,39430.0,39425.0,0.377801]
[1645913056107,0.32029162,39431.0,39425.0,0.377801]
[1645913056507,0.32029162,39430.0,39425.0,0.377801]
[1645913056806,0.32029162,39430.0,39427.0,0.16003873]
[1645913057006,0.32029162,39430.0,39428.0,0.377801]
[1645913057255,0.32029162,39431.0,39428.0,0.377801]
[1645913057453,0.32029162,39430.0,39428.0,0.377801]
[1645913061997,0.32029162,39430.0,39423.0,0.00370086]
[1645913062201,0.32029162,39430.0,39424.0,0.377801]
[1645913062202,0.32029162,39427.0,39424.0,0.377801]
[1645913063494,0.32129162,39427.0,39424.0,0.377801]
[1645913064296,0.001,39427.0,39424.0,0.377801]
[1645913065051,0.32029162,39428.0,39424.0,0.377801]
[1645913065650,0.32129162,39428.0,39424.0,0.377801]
[1645913067551,0.32229162,39428.0,39424.0,0.377801]
[1645913067953,0.32229162,39428.0,39426.0,0.377801]
[1645913068154,0.32229162,39428.0,39424.0,0.377801]
[1645913068898,0.32029162,39428.0,39424.0,0.59380287]
[1645913069599,0.32229162,39428.0,39424.0,0.59380287]
[1645913070100,0.32229162,39428.0,39426.0,0.37770633]
[1645913070305,0.002,39428.0,39426.0,0.37770633]
[1645913070900,0.32029162,39429.0,39426.0,0.37770633]
[1645913071101,0.32029162,39428.0,39426.0,0.37770633]
[1645913071502,0.32129162,39429.0,39426.0,0.37770633]
[1645913072357,0.001,39429.0,39428.0,0.377801]
[1645913072561,0.32029162,39435.0,39429.0,0.002]
[1645913072757,0.32029162,39435.0,39430.0,0.377836]
[1645913072956,0.32029162,39435.0,39432.0,0.377836]
[1645913074255,0.32029162,39435.0,39432.0,0.34005241]
[1645913074455,0.32029162,39434.0,39432.0,0.34005241]
[1645913075056,0.32029162,39435.0,39432.0,0.34005241]
[1645913075256,0.37342688,39436.0,39432.0,0.34005241]
[1645913075257,0.32029162,39434.0,39432.0,0.34005241]
[1645913082654,0.32029162,39433.0,39432.0,0.34005241]
[1645913083256,0.32029162,39434.0,39432.0,0.34005241]
[1645913083904,0.37342688,39435.0,39432.0,0.34005241]
[1645913084104,0.32043567,39433.0,39430.0,0.377805]
[1645913086704,0.32043567,39433.0,39430.0,0.362805]
[1645913091496,0.32043567,39434.0,39430.0,0.362805]
[1645913092599,0.32043567,39435.0,39430.0,0.362805]
[1645913094200,0.3207717,39436.0,39430.0,0.362805]
[1645913094400,0.32043567,39436.0,39430.0,0.362805]
[1645913094644,0.3207717,39436.0,39430.0,0.362805]
[1645913095050,0.32043567,39435.0,39430.0,0.362805]
[1645913095446,0.32043567,39435.0,39431.0,0.3]
[1645913095651,0.00033603,39436.0,39431.0,0.3]
[1645913095652,0.32043567,39436.0,39432.0,0.377805]
[1645913095848,0.32043567,39436.0,39433.0,0.3]
[1645913095849,0.00033603,39436.0,39433.0,0.3]
[1645913096048,0.00033603,39436.0,39434.0,0.377808]
[1645913096251,0.00033603,39436.0,39435.0,0.3]
[1645913096549,0.00033603,39436.0,39435.0,0.677808]
[1645913096750,0.34543567,39440.0,39436.0,0.377808]
[1645913097046,0.00033604,39437.0,39436.0,0.30982365]
[1645913097947,0.025,39440.0,39436.0,0.30982365]
[1645913098149,0.00033604,39438.0,39436.0,0.30982365]
[1645913098808,0.1984371,39438.0,39436.0,0.30982365]
[1645913099202,0.1975357,39438.0,39436.0,0.30982365]
[1645913101409,0.1975357,39438.0,39436.0,0.30937325]
[1645913104955,0.1975357,39438.0,39436.0,0.46763508]
[1645913105157,0.1975357,39438.0,39436.0,0.30937325]
[1645913108303,0.1975357,39438.0,39436.0,0.52048651]
[1645913109509,0.02533565,39440.0,39437.0,0.3]
[1645913109770,0.02533565,39440.0,39438.0,0.377808]
[1645913109964,0.32049964,39447.0,39440.0,0.04601738]
[1645913110172,0.32049964,39447.0,39441.0,0.428178]
[1645913110364,0.32049964,39447.0,39441.0,0.728178]
[1645913110567,0.32049964,39448.0,39441.0,0.728178]
[1645913110974,0.1899,39453.0,39441.0,0.728178]
[1645913110975,0.32049964,39451.0,39441.0,0.728178]
[1645913111168,0.32049964,39451.0,39442.0,0.7744]
[1645913111370,0.32049964,39455.0,39446.0,0.02537]
[1645913111571,0.32049964,39455.0,39452.0,0.16064055]
[1645913111771,0.22012472,39456.0,39451.0,0.0504]
[1645913111969,0.22012472,39456.0,39452.0,0.377778]
[1645913112168,0.54062436,39456.0,39452.0,0.377778]
[1645913112368,0.22012472,39456.0,39452.0,0.377778]
[1645913112768,0.22049742,39456.0,39452.0,0.377778]
[1645913112969,0.0003727,39456.0,39452.0,0.377778]
[1645913113403,0.0003727,39456.0,39454.0,0.377778]
[1645913113605,0.3754068,39462.0,39454.0,0.377778]
[1645913113606,0.32049964,39460.0,39454.0,0.377778]
[1645913113806,0.0003727,39456.0,39454.0,0.377778]
[1645913114807,0.1782665,39458.0,39454.0,0.377778]
[1645913115007,0.0003727,39457.0,39454.0,0.377778]
[1645913116007,0.1782665,39458.0,39454.0,0.377778]
[1645913116205,0.00032801,39457.0,39454.0,0.377778]
[1645913117263,0.1782665,39458.0,39454.0,0.31966016]
[1645913117466,0.00032801,39457.0,39454.0,0.31966016]
[1645913118460,0.1782665,39458.0,39454.0,0.31966016]
[1645913118763,0.00032801,39457.0,39454.0,0.31966016]
[1645913119166,0.00032801,39457.0,39448.0,0.377691]
[1645913119364,0.00032801,39457.0,39441.0,0.3]
[1645913119566,0.01012,39456.0,39441.0,0.3]
[1645913119759,0.19792991,39456.0,39444.0,0.21649442]
[1645913119963,0.22269067,39449.0,39445.0,0.377691]
[1645913120164,1.252136,39447.0,39438.0,0.64808272]
[1645913120372,0.8,39448.0,39438.0,0.24218272]
[1645913120373,0.1,39439.0,39438.0,0.24218272]
[1645913120564,0.1,39439.0,39438.0,0.22437155]
[1645913120565,1.685096,39439.0,39438.0,0.22437155]
[1645913120763,1.685096,39439.0,39438.0,0.17613718]
[1645913120764,2.28708643,39439.0,39438.0,0.17613718]
[1645913121004,0.11453452,39437.0,39429.0,0.002]
[1645913121206,0.36268864,39435.0,39429.0,0.002]
[1645913121404,0.3504,39434.0,39429.0,0.002]
[1645913121604,0.06346,39432.0,39429.0,0.002]
[1645913121805,0.19928488,39430.0,39429.0,0.002]
[1645913122006,0.49928488,39430.0,39429.0,0.002]
[1645913123004,0.54968488,39430.0,39429.0,0.002]
[1645913123807,0.55981488,39430.0,39429.0,0.002]
[1645913125256,1.33421488,39430.0,39429.0,0.002]
[1645913125455,0.55981488,39430.0,39429.0,0.002]
[1645913125657,0.73136462,39430.0,39429.0,0.002]
[1645913125856,0.55981488,39430.0,39429.0,0.002]
[1645913126256,1.33421488,39430.0,39429.0,0.002]
[1645913126658,1.50576462,39430.0,39429.0,0.002]
[1645913127060,1.62324462,39430.0,39429.0,0.002]
[1645913127264,1.62324462,39430.0,39424.0,0.00038806]
[1645913127265,0.7744,39428.0,39424.0,0.00038806]
[1645913127469,0.1,39425.0,39424.0,0.00038806]
[1645913127662,0.888266,39425.0,39424.0,0.00038806]
[1645913127861,0.938266,39425.0,39424.0,0.00038806]
[1645913128060,0.126964,39423.0,39413.0,0.001]
[1645913128262,0.1764295,39415.0,39413.0,0.001]
[1645913128509,0.23991345,39415.0,39406.0,0.04]
[1645913128707,0.29031345,39415.0,39407.0,0.377736]
[1645913128909,0.29031345,39415.0,39407.0,0.372736]
[1645913130113,0.59031345,39415.0,39407.0,0.372736]
[1645913130635,0.59031345,39415.0,39409.0,0.00040137]
[1645913131509,0.59031345,39415.0,39406.0,0.04]
[1645913131712,0.59131345,39415.0,39410.0,0.00040136]
[1645913132757,0.59131345,39415.0,39406.0,0.04]
[1645913133052,0.59031345,39415.0,39411.0,0.00040136]
[1645913133251,0.29031345,39415.0,39411.0,0.00040136]
[1645913133752,0.59231345,39415.0,39411.0,0.00040136]
[1645913133951,0.59231345,39415.0,39406.0,0.04]
[1645913134151,0.59231345,39415.0,39411.0,0.00038782]
[1645913134352,0.29231345,39415.0,39411.0,0.00038782]
[1645913134952,0.29031345,39415.0,39411.0,0.00038782]
[1645913135154,0.29031345,39415.0,39406.0,0.04]
[1645913135359,0.29031345,39415.0,39411.0,0.00038782]
[1645913135554,0.11388395,39415.0,39411.0,0.00038782]
[1645913136405,0.11388395,39415.0,39406.0,0.04]
[1645913136601,0.11388395,39415.0,39411.0,0.00038782]
[1645913137002,0.0504,39415.0,39411.0,0.00038782]
[1645913137302,0.063484,39416.0,39411.0,0.00038782]
[1645913137703,0.002,39415.0,39409.0,0.377847]
[1645913137907,0.002,39415.0,39412.0,0.00038978]
[1645913138904,0.002,39415.0,39409.0,0.377847]
[1645913139104,0.002,39415.0,39412.0,0.00038978]
[1645913139954,0.002,39415.0,39408.0,0.18597204]
[1645913140156,0.002,39415.0,39412.0,0.00038978]
[1645913140952,0.063474,39419.0,39412.0,0.00038978]
[1645913141154,0.063474,39419.0,39408.0,0.18597204]
[1645913141354,0.063474,39419.0,39412.0,0.0003895]
[1645913141766,0.01013,39420.0,39412.0,0.0003895]
[1645913141961,0.06347058,39423.0,39412.0,0.0003895]
[1645913141962,0.5,39423.0,39413.0,0.37784]
[1645913142555,0.5,39423.0,39416.0,0.00028956]
[1645913142756,0.16995551,39420.0,39416.0,0.00028956]
[1645913142954,0.1193,39426.0,39416.0,0.00028956]
[1645913142955,0.19829734,39422.0,39420.0,0.26028422]
[1645913144010,0.19829734,39422.0,39421.0,0.37784]
[1645913144209,0.36346,39428.0,39421.0,0.37784]
[1645913144210,0.01013,39427.0,39421.0,0.37784]
[1645913144408,1.11498434,39430.0,39420.0,0.26028422]
[1645913144607,0.61498434,39430.0,39420.0,0.26028422]